Cogmind - Beta 15 @@@ ROGUE MODE // 2025.08.06 @ 23:21:51 Player: Endlessblaze Result: Destroyed by G-50 Soldier with Heavy Laser Performance ------------- Evolutions (4) 2000 Regions Visited (6) 1200 Robots Destroyed (38) 190 Value Destroyed (1685) 1685 Prototype IDs (6) 120 Alien Tech Used (0) 0 Bonus (1950) 1950 TOTAL SCORE: 7145 Bonus ------- High Alert Combat Kills 348 Follower Combat Kills 958 Registered with UFD 300 Met Optimus in HQ 500 Friendly Fire -156 Cogmind --------- Core Integrity 0/850 Matter 285/300 Energy 15/100 System Corruption 19% Temperature Cool (16) Movement Core (100) Ox1 Location -6/Factory Parts ------- > --- POWER (3) -------- (None) > --- PROPULSION (4) --- (None) > --- UTILITY (4) ------ (None) > --- WEAPON (4) ------- Companion Sword > --- INVENTORY (5) ---- (None) Peak State ------------ > --- POWER ------------ Backup Power III Antimatter Reactor Antimatter Reactor > --- PROPULSION ------- Heavy Treads Heavy Treads > --- UTILITY ---------- Advanced Sensor Array Melee Analysis Suite Improved Weapon Shielding Hacking Suite > --- WEAPON ----------- Plasma Rifle Compact Ion Cannon CPS Tube Companion Sword > --- INVENTORY -------- IFF Parser Hardened Heavy Armor Plating Heavy Particle Cannon [Rating: 76] Favorites ----------- Power Antimatter Reactor Engine Ion Engine Power Core Neutrino Core Reactor Antimatter Reactor Propulsion Aluminum Leg Treads Heavy Treads Leg Aluminum Leg Hover Unit Combat Airjet Flight Unit Nuclear Pulse Thruster Utility Hacking Suite Device Seismic Detector Storage Small Storage Unit Processor Melee Analysis Suite Hackware Hacking Suite Protection Improved Weapon Shielding Weapon EM Pulse Gun Energy Gun EM Pulse Gun Energy Cannon Compact Ion Cannon Ballistic Gun Enhanced Autogun Launcher Grenade Launcher Special Weapon CPS Tube Slashing Weapon Companion Sword Build | -11 -10 -10 -9 -6 -6 -6 ------- Run | Yrd Mat Sub Scr Fac Was Fac Slots Evolved 8 | . . . . 8 . . Power 2 | . . . . 2 . . Propulsion 2 | . . . . 2 . . Utility 2 | . . . . 2 . . Weapon 2 | . . . . 2 . . Parts Attached 50 | 7 . . 12 17 8 6 Power 11 | 1 . . 3 5 2 . Engine 6 | 1 . . 3 2 . . Core 3 | . . . . 3 . . Reactor 2 | . . . . . 2 . Propulsion 11 | 2 . . 3 4 2 . Treads 2 | . . . . . 2 . Leg 6 | 2 . . 3 1 . . Wheel . | . . . . . . . Hover 1 | . . . . 1 . . Flight 2 | . . . . 2 . . Utility 14 | 2 . . 2 3 3 4 Device 8 | 1 . . 2 1 1 3 Storage 2 | 1 . . . 1 . . Processor 1 | . . . . . 1 . Hackware 1 | . . . . 1 . . Protection 2 | . . . . . 1 1 Artifact . | . . . . . . . Weapon 14 | 2 . . 4 5 1 2 Energy Gun 5 | 2 . . . 3 . . Energy Cannon 3 | . . . . 1 . 2 Ballistic Gun 1 | . . . 1 . . . Ballistic Cannon . | . . . . . . . Launcher 2 | . . . 2 . . . Special Weapon 1 | . . . . . 1 . Impact Weapon . | . . . . . . . Slashing Weapon 2 | . . . 1 1 . . Piercing Weapon . | . . . . . . . Special Melee Weapon . | . . . . . . . Unidentified Prototypes 5 | . . . 2 1 . 2 Parts Lost 30 | . . . 5 15 . 10 Power 7 | . . . 1 4 . 2 Propulsion 5 | . . . . 4 . 1 Utility 6 | . . . . 1 . 5 Weapon 12 | . . . 4 6 . 2 Highest Loss Streak 11 | . . . 2 11 . 8 To Critical Strikes . | . . . . . . . Average Backups 8 | 3 6 8 7 16 2 3 Power . | . . . . . . . Propulsion 1 | 1 2 2 1 1 . . Utility 3 | . 2 2 1 10 1 1 Weapon 2 | 1 2 4 3 3 . 1 Tool/Special . | . . . . . . . Unused Backups 19 | . . . 5 10 . 4 Power 1 | . . . . . . 1 Propulsion 3 | . . . 2 . . 1 Utility 12 | . . . 1 9 . 2 Weapon 3 | . . . 2 1 . . Tool/Special . | . . . . . . . Average Slot Usage (%) 87 | . 100 100 97 78 72 80 Engine 10 | . 14 14 13 9 4 5 Core 1 | . . . . 5 . . Reactor 4 | . . . . . 9 12 Treads 4 | . . . . . 9 12 Leg 15 | . 28 28 28 16 . . Device 9 | . 14 14 13 6 5 6 Storage 6 | . 14 14 12 5 . . Processor 1 | . . . . . 6 5 Hackware 3 | . . . . 5 6 5 Protection 1 | . . . . . 5 5 Energy Gun 16 | . 28 28 25 12 6 5 Ballistic Gun 1 | . . . . 5 . . Special Weapon 1 | . . . . . 5 5 Slashing Weapon 3 | . . . . 6 6 6 Peak Build Rating 76 | 7 8 8 28 61 71 76 Average Rating 38 | 5 7 8 9 52 60 72 On Entrance 20 | . 7 8 8 26 20 71 Naked Turns . | . . . . . . . Heaviest Build 92 | 15 15 15 19 92 46 51 Greatest Support 140 | 20 20 20 38 53 140 140 Greatest Overweight (x) 9 | 4 . . . 3 9 1 Average Overweight (x) . | . . . . 1 . . Largest Inventory Capacity 20 | 8 8 8 8 20 5 5 Average Capacity 9 | 7 8 8 7 18 5 5 Most Carried 20 | 6 8 8 8 20 5 5 Average Carried 8 | 3 6 8 7 16 2 4 Final Capacity 8 | 8 8 8 5 5 5 5 Final Carried 8 | 6 8 8 5 5 5 . Class Distribution -------------------- 41% | Mutant 24% | Scavenger-Mutant 20% | Scavenger-Scrapper 7% | Scavenger-Tank 5% | Scavenger-Gunner Dominant Class ---------------- Mutant | -10/Materials Mutant | -10/Subcaves Mutant | -9/Scraptown Scavenger-Scrapper | -6/Factory Scavenger-Mutant | -6/Waste Scavenger-Mutant | -6/Factory Resources | -11 -10 -10 -9 -6 -6 -6 ----------- Run | Yrd Mat Sub Scr Fac Was Fac Matter Collected 1020 | 260 10 . 252 280 106 112 Remotely . | . . . . . . . Salvage Created 1940 | 234 . . 359 624 . 723 Parts 103 | 15 . . 21 30 . 37 Haulers Intercepted . | . . . . . . . Recyclers Shooed . | . . . . . . . Parts Field Recycled . | . . . . . . . Retrieved Matter . | . . . . . . . Parts Self-Destructed . | . . . . . . . Prevented . | . . . . . . . Kills | -11 -10 -10 -9 -6 -6 -6 ------- Run | Yrd Mat Sub Scr Fac Was Fac Combat Hostiles Destroyed 30 | . . . 6 13 . 11 Melee 13 | . . . 1 7 . 5 Guns 7 | . . . 1 5 . 1 Cannons 4 | . . . . . . 4 AOE 4 | . . . 4 . . . Classes Destroyed 12 | 3 . . 2 4 . 3 Worker 1 | 1 . . . . . . Tunneler 5 | 5 . . . . . . Recycler 2 | 1 . . . . . 1 Swarmer 3 | . . . . 3 . . Grunt 12 | . . . . 6 . 6 Duelist 1 | . . . . . . 1 Protector 1 | . . . . . . 1 Sentry 2 | . . . . . . 2 Hunter 1 | . . . . 1 . . Programmer 4 | . . . . 3 . 1 Scrapper 5 | . . . 5 . . . Mutant 1 | . . . 1 . . . Best Kill Streak 5 | 2 . . 3 4 . 5 Combat Bots Only 5 | . . . 3 4 . 5 Max Kills in Single Turn 2 | 1 . . 2 2 . 1 Gunslinging . | . . . . . . . Exploded 2 | . . . 2 . . . Melee 2 | . . . 1 2 . 1 Uniques/NPCs Destroyed . | . . . . . . . Combat | -11 -10 -10 -9 -6 -6 -6 -------- Run | Yrd Mat Sub Scr Fac Was Fac Hostile Shots Fired 321 | . . . 45 130 . 146 Missed 89 | . . . 10 41 . 38 Hits 232 | . . . 35 89 . 108 Melee 35 | . . . . . . 35 Projectile 197 | . . . 35 89 . 73 AOE 1 | . . . . 1 . . Critical Strikes 19 | . . . 7 3 . 9 Actively Blocked 1 | . . . . . . 1 Damage Taken 4804 | . . . 796 1831 . 2177 Core 1018 | . . . 160 491 . 367 Absorbed by Shields . | . . . . . . . Redirected to Shielding 128 | . . . . . . 128 Regen/Repaired (Parts) 185 | . . . 30 96 . 59 Core Remaining (%) 68 | 100 . . 36 . . . Volleys Fired 101 | 19 . . 27 28 8 19 Largest 3 | 2 . . 2 3 1 2 Hottest 170 | 80 . . 110 170 75 165 Shots Fired 194 | 38 . . 36 75 8 37 Gun 158 | 38 . . 23 70 7 20 Cannon 22 | . . . . 5 . 17 Launcher 13 | . . . 13 . . . Special 1 | . . . . . 1 . Kinetic 30 | . . . 3 27 . . Thermal 98 | . . . 10 44 7 37 Explosive 13 | . . . 13 . . . Electromagnetic 52 | 38 . . 10 4 . . Robot Hit Streak 9 | 4 . . 6 9 7 6 Robot Miss Streak 4 | 2 . . 3 3 1 4 Penetration Max . | . . . . . . . Secondary Targets . | . . . . . . . Shots Hit Robots 141 | 20 . . 15 58 7 41 Core Hits 73 | 8 . . 14 27 2 22 Critical Kills 1 | . . . . . . 1 Critical Parts Destroyed . | . . . . . . . Critical Strikes 3 | . . . . 2 . 1 Burn 2 | . . . . 2 . . Meltdown 1 | . . . . . . 1 Melee Attacks 42 | . . . 1 13 . 28 Impact . | . . . . . . . Slashing 42 | . . . 1 13 . 28 Piercing . | . . . . . . . Sneak Attacks 3 | . . . . . . 3 Combat Hostiles . | . . . . . . . Follow-up Attacks 2 | . . . . 1 . 1 Damage Inflicted 3913 | 384 4 . 662 1325 154 1384 Guns 1651 | 273 . . 162 761 154 301 Cannons 500 | . . . . 178 . 322 Explosions 574 | 111 . . 463 . . . Melee 1184 | . . . 37 386 . 761 Ramming 4 | . 4 . . . . . Kinetic 262 | . . . . 262 . . Thermal 1614 | 111 . . 80 646 154 623 Explosive 463 | . . . 463 . . . Electromagnetic 386 | 273 . . 82 31 . . Impact . | . . . . . . . Slashing 1184 | . . . 37 386 . 761 Piercing . | . . . . . . . Highest Corruption 19 | . . . . 5 5 19 Average Corruption 4 | . . . . 2 5 5 Corruption Purged . | . . . . . . . Corruption Blocked . | . . . . . . . Effects 79 | . . . . 18 6 55 Message Errors 22 | . . . . 4 1 17 Matter Fused 15 | . . . . 3 3 9 Heat Flow Errors 13 | . . . . 5 1 7 Energy Discharges 7 | . . . . 1 . 6 Parts Rejected 1 | . . . . . . 1 Data Loss (minor) 9 | . . . . 3 1 5 Data Loss (major) 5 | . . . . 1 . 4 Misfires 5 | . . . . 1 . 4 Alerts 1 | . . . . . . 1 Weapon Failures 1 | . . . . . . 1 Overload Shots . | . . . . . . . Overflow Damage 119 | 8 . . . . . 111 Projectiles 18 | . . . . . . 18 Explosions 8 | 8 . . . . . . Melee 93 | . . . . . . 93 Knockbacks . | . . . . . . . Impact . | . . . . . . . Kinetic . | . . . . . . . Secondary . | . . . . . . . Self-Inflicted Damage 3 | . . . 3 . . . Shots 1 | . . . 1 . . . Rammed . | . . . . . . . Targets Rammed 1 | . 1 . . . . . Kicked 1 | . 1 . . . . . Crushed . | . . . . . . . Highest Temperature 650 | 126 . . 261 650 189 522 Average Temperature 136 | 46 . . 86 210 73 127 Received Heat Transfer 1068 | . . . 522 240 . 306 Effects 40 | . . . . 33 . 7 Shutdowns 17 | . . . . 13 . 4 Energy Bleed 4 | . . . . 2 . 2 Interference 3 | . . . . 3 . . Matter Decay 1 | . . . . 1 . . Short Circuit 2 | . . . . 2 . . Damage (major) 12 | . . . . 11 . 1 Damage (core) 1 | . . . . 1 . . Siege Activations . | . . . . . . . Martial Activations . | . . . . . . . Shielding Activations . | . . . . . . . Robots Disrupted . | . . . . . . . Combat Hostiles . | . . . . . . . Robots Corrupted . | . . . . . . . Combat Hostiles . | . . . . . . . Parts Fried 1 | 1 . . . . . . Impact Corruptions . | . . . . . . . Robots Melted 2 | . . . . 1 . 1 Combat Hostiles 2 | . . . . 1 . 1 Parts Melted 10 | . . . 1 4 . 5 Heat Transferred 3185 | 150 . . 148 1435 350 1102 Parts Sabotaged . | . . . . . . . Parts Stolen . | . . . . . . . Parts Stripped . | . . . . . . . Power Chain Reactions 2 | 2 . . . . . . Alert | -11 -10 -10 -9 -6 -6 -6 ------- Run | Yrd Mat Sub Scr Fac Was Fac Maximum Alert Level 4 | . . . . . . 4 Low Security (%) 77 | 100 100 . . 100 100 48 Level 1 14 | . . . . . . 32 Level 2 . | . . . . . . 1 Level 3 3 | . . . . . . 7 Level 4 4 | . . . . . . 10 Level 5 . | . . . . . . . High Security . | . . . . . . . Max Security . | . . . . . . . Peak Influence 1285 | 10 10 . . 86 33 1285 Initial . | . . . . . . . Average 153 | 1 . . . 20 4 330 Influence Increases 2439 | 35 14 . . 359 72 1959 Destroy 0b10 Robot/C 880 | . . . . 260 . 620 Destroy 0b10 Robot/NC 105 | 35 . . . . . 70 Destroy Leader 234 | . . . . 60 . 174 Allied During Kill 654 | . . . . . . 654 Successful Hack 102 | . 14 . . 39 . 49 Disable Machine 60 | . . . . . . 60 Anti-Garrison Action 150 | . . . . . . 150 Destroy Structure 224 | . . . . . 72 152 Partial Spotted 15 | . . . . . . 15 Lose Combat Pursuer 15 | . . . . . . 15 Influence Decreases 1261 | 35 14 . . 359 72 781 Time Decay 868 | 35 14 . . 306 72 441 Lost Part 153 | . . . . 53 . 100 Lost Ally 240 | . . . . . . 240 Squads Dispatched 17 | . 1 . . 4 . 12 Investigation 6 | . 1 . . 1 . 4 Extermination 7 | . . . . 3 . 4 Reinforcement 1 | . . . . . . 1 Assault 2 | . . . . . . 2 Garrison 1 | . . . . . . 1 Intercept . | . . . . . . . Searches Triggered . | . . . . . . . Construction Impeded 1 | . . . . . . 1 Haulers Reinforced . | . . . . . . . Active Scanning Responses . | . . . . . . . Cargo Convoy Interrupts 1 | . . . . 1 . . Stealth | -11 -10 -10 -9 -6 -6 -6 --------- Run | Yrd Mat Sub Scr Fac Was Fac Distress Signals . | . . . . . . . Communications Jammed . | . . . . . . . Distress Signals . | . . . . . . . Times Spotted 73 | . 1 . 16 16 6 34 Peak Tracking Total 7 | . 1 . 4 5 3 7 Tactical Retreats 2 | . . . 1 . . 1 Traps | -11 -10 -10 -9 -6 -6 -6 ------- Run | Yrd Mat Sub Scr Fac Was Fac Traps Triggered 3 | . . . . 3 . . Indirectly . | . . . . . . . Trap Hack Attempts . | . . . . . . . Triggered . | . . . . . . . Disarmed . | . . . . . . . Reprogrammed . | . . . . . . . Reused . | . . . . . . . Traps Extracted . | . . . . . . . Installed . | . . . . . . . Triggered . | . . . . . . . Machines | -11 -10 -10 -9 -6 -6 -6 ---------- Run | Yrd Mat Sub Scr Fac Was Fac Machines Disabled 7 | . . . 2 . . 5 Max in Single Turn 1 | . . . 1 . . 1 Garrison Access 1 | . . . . . . 1 Machines Repaired . | . . . . . . . Machines Dismantled . | . . . . . . . Machines Sabotaged . | . . . . . . . Overloaded Fab Kills . | . . . . . . . Hacking | -11 -10 -10 -9 -6 -6 -6 --------- Run | Yrd Mat Sub Scr Fac Was Fac Machines Accessed 26 | . 2 . 7 8 . 9 Terminals 9 | . 2 . . 3 . 4 Fabricators 3 | . . . . 2 . 1 Repair Stations 2 | . . . . 1 . 1 Recycling Units 2 | . . . . 1 . 1 Scanalyzers 2 | . . . . . . 2 Garrison Access 1 | . . . . 1 . . Total Hacks 78 | . 5 . 37 13 . 23 Successful 62 | . 3 . 37 8 . 14 Failed 15 | . 2 . . 5 . 8 Catastrophic 5 | . . . . 3 . 2 Database Lockouts 1 | . . . . . . 1 Manual 15 | . 4 . . 5 . 6 Terminals 17 | . 5 . . 3 . 9 Fabricators 3 | . . . . 2 . 1 Repair Stations 2 | . . . . 1 . 1 Recycling Units 5 | . . . . 4 . 1 Scanalyzers 11 | . . . . . . 11 Garrison Access 3 | . . . . 3 . . Terminal Hacks 43 | . 1 . 37 2 . 3 Record 39 | . . . 37 . . 2 Open DSF 2 | . . . . 2 . . Locate Traps 1 | . . . . . . 1 Reinforcement Status 1 | . 1 . . . . . Fabricator Hacks 2 | . . . . 1 . 1 Build 2 | . . . . 1 . 1 Repair Station Hacks . | . . . . . . . Recycling Unit Hacks 3 | . . . . 2 . 1 Report Inventory 2 | . . . . 1 . 1 Retrieve Components 1 | . . . . 1 . . Scanalyzer 8 | . . . . . . 8 Insert Component 4 | . . . . . . 4 Analyze 4 | . . . . . . 4 Garrison Access Hacks . | . . . . . . . Unauthorized Hacks 4 | . 2 . . 1 . 1 Terminals 2 | . 2 . . . . . Botnet 2 | . 2 . . . . . Fabricators . | . . . . . . . Repair Stations 2 | . . . . 1 . 1 Patch 2 | . . . . 1 . 1 Recycling Units . | . . . . . . . Scanalyzers . | . . . . . . . Garrison Access . | . . . . . . . Data Cores Recovered . | . . . . . . . Used . | . . . . . . . Hacking Detections 15 | . 1 . . 6 . 8 Full Trace Events 3 | . . . . . . 3 Feedback Events 1 | . . . . . . 1 Corruption 1 | . . . . . . 1 Feedback Blocked . | . . . . . . . Robot Schematics Acquired . | . . . . . . . Robots Built 5 | . . . . 2 . 3 Authchips . | . . . . . . . Time 94 | . . . . 50 . 44 Total Robot Build Rating 22 | . . . . 10 . 12 Part Schematics Acquired 4 | . . . . . . 4 Parts Built . | . . . . . . . Authchips . | . . . . . . . Time . | . . . . . . . Total Part Build Rating . | . . . . . . . Parts Repaired . | . . . . . . . Time . | . . . . . . . Parts Recycled . | . . . . . . . Recycled Matter . | . . . . . . . Retrieved Matter . | . . . . . . . Retrieved Components 2 | . . . . 2 . . Parts Scanalyzed 4 | . . . . . . 4 Part Schematics Acquired 4 | . . . . . . 4 Parts Damaged 1 | . . . . . . 1 Bothacking | -11 -10 -10 -9 -6 -6 -6 ------------ Run | Yrd Mat Sub Scr Fac Was Fac Used RIF Installer . | . . . . . . . Robots Hacked . | . . . . . . . Non-combat . | . . . . . . . Combat . | . . . . . . . Robot Hacks Applied . | . . . . . . . Relay Couplers Released 2 | . . . . . . 2 Machine Destruction 2 | . . . . . . 2 Fabnet Peak Effective % . | . . . . . . . Robots Rewired . | . . . . . . . Allies Hacked . | . . . . . . . Hacks Repelled . | . . . . . . . Allies | -11 -10 -10 -9 -6 -6 -6 -------- Run | Yrd Mat Sub Scr Fac Was Fac Total Allies 25 | . . . . 2 20 3 Largest Group 20 | . . . . 2 20 18 Highest-Rated Group 711 | . . . . 28 711 638 Highest-Rated Ally 50 | . . . . 14 50 50 Total Orders 3 | . . . . . . 3 GUARD 3 | . . . . . . 3 Ally Attacks 337 | . . . . 2 150 185 Total Damage 10578 | . . . . . 4957 5621 Kills 48 | . . . . . 10 38 Allies Corrupted . | . . . . . . . Allies Melted 3 | . . . 2 . . 1 Intel | -11 -10 -10 -9 -6 -6 -6 ------- Run | Yrd Mat Sub Scr Fac Was Fac Active Infowar (turns) 5320 | 22 175 231 2358 140 394 2000 Sensors 2394 | . . . . . 394 2000 Seismic 2926 | 22 175 231 2358 140 . . Robot Analysis Total . | . . . . . . . Derelict Logs Recovered . | . . . . . . . Drone Launches . | . . . . . . . Drone Recoveries . | . . . . . . . Exploration | -11 -10 -10 -9 -6 -6 -6 ------------- Run | Yrd Mat Sub Scr Fac Was Fac Turns Passed 7569 | 244 175 231 2712 1779 397 2031 Spaces Moved 4924 | 123 143 165 2224 877 240 1152 Core 47 | 44 . . . . 1 2 Treads 1310 | . . . . . 160 1150 Legs 3472 | 79 143 165 2224 861 . . Wheels . | . . . . . . . Hover 95 | . . . . 16 79 . Flight . | . . . . . . . Fastest Speed 50 | 50 120 120 100 80 80 100 Average Speed 140 | 138 120 120 117 179 135 159 Slowest Speed 500 | 250 120 120 120 290 500 160 Overloaded Moves . | . . . . . . . Propulsion Burnouts . | . . . . . . . Robots Hopped . | . . . . . . . Potential Cave-ins . | . . . . . . . Cave-ins Triggered . | . . . . . . . Exploration Rate (%) 36 | 9 33 11 89 11 86 18 Regions Visited 6 Branch Regions 2 Pre-discovered Areas . | . . . . . . . Known Exits Taken 1 | . . . 1 . . . Unknown Exits Taken 3 | 1 1 1 . . . . Scrap Searched . | . . . . . . . Spaces Dug . | . . . . . . . Terrain Destroyed 76 | 7 . . 68 . . 1 Melee . | . . . . . . . Projectile 1 | . . . . . . 1 AOE 75 | 7 . . 68 . . . Terrain Rammed . | . . . . . . . Walls Destroyed . | . . . . . . . Machines Disabled . | . . . . . . . Actions | -11 -10 -10 -9 -6 -6 -6 --------- Run | Yrd Mat Sub Scr Fac Was Fac Total 5390 | 154 146 198 2290 1027 303 1272 Wait 200 | . 1 34 10 61 44 50 Move 4919 | 122 142 164 2223 877 239 1152 Hop . | . . . . . . . Pick Up 40 | 6 2 . 3 21 2 6 Fast Attach 29 | 7 . . 8 8 4 2 Attach 18 | . . . 1 8 4 5 Detach 2 | . . . 1 . 1 . Swap 8 | . . . 3 5 . . Drop 32 | . . . 13 7 1 11 Fire 101 | 19 . . 27 28 8 19 Melee 40 | . . . 1 12 . 27 Ram . | . . . . . . . Kick 1 | . 1 . . . . . Crush . | . . . . . . . Escape Stasis . | . . . . . . . Rewire . | . . . . . . . Trap . | . . . . . . . Miscellaneous . | . . . . . . . Route ------- -11/Scrapyard -10/Materials (discovered 2 exits: [*Min] / [*Sub]) -10/Subcaves -9/Scraptown (discovered 2 exits: *Fac x2) -6/Factory -6/Waste -6/Factory History --------- Turn | Location | Event 19 | -11/Scrapyard | Discovered new exit (range 16) 245 | -11/Scrapyard | Entered Materials 246 | -10/Materials | Met a group of wandering Federalists 303 | -10/Materials | Build established: Mutant 369 | -10/Materials | Discovered new exit (range 15) 416 | -10/Materials | Discovered new exit (range 5) 420 | -10/Materials | Entered Subcaves 421 | -10/Subcaves | Continued accompanying wandering Federalists (4) 421 | -10/Subcaves | Approached by a straggling Scientist 632 | -10/Subcaves | Wandering Federalist uncovered a shortcut to Scraptown 651 | -10/Subcaves | Entered Scraptown 789 | -9/Scraptown | Heard Great Nut preacher, LISTEN AND RECITE! 987 | -9/Scraptown | Visited Red Mages 1092 | -9/Scraptown | Visited Bundlers 1189 | -9/Scraptown | Visited UFD Registry 1217 | -9/Scraptown | Visited SPCMW 1260 | -9/Scraptown | Visited Symbiants 1323 | -9/Scraptown | Visited Cave Peace 1715 | -9/Scraptown | Visited Awakened 1914 | -9/Scraptown | Visited Shadow of the Wyrm 1997 | -9/Scraptown | Discovered new exit (range 13) 2466 | -9/Scraptown | Registered with UFD as "Shadowhacker" 2506 | -9/Scraptown | Visited Supply Room 2527 | -9/Scraptown | Visited Science Guys 2628 | -9/Scraptown | Visited Research Penetration Think Tank 2914 | -9/Scraptown | Met Optimus 2914 | -9/Scraptown | Accepted into 0bPrime 2983 | -9/Scraptown | Visited Derelict Rescue Squad 2989 | -9/Scraptown | Civil war broke out across Scraptown 3013 | -9/Scraptown | Found Scrap Suit 3033 | -9/Scraptown | Lost 3 allies 3062 | -9/Scraptown | Found Scrap Suit 3065 | -9/Scraptown | Identified exit to Factory 3112 | -9/Scraptown | Optimus destroyed in the chaos of civil war 3198 | -9/Scraptown | Visited Scrap Suit Storage 3294 | -9/Scraptown | Lost 4 allies 3332 | -9/Scraptown | Core integrity fell below 50% 3363 | -9/Scraptown | Entered Factory 3363 | -6/Factory | Evolved 8 slots: Power x2, Propulsion x2, Utility x2, Weapon x2 3373 | -6/Factory | Identified exit to DSF 3384 | -6/Factory | Lost 7 allies 3390 | -6/Factory | Build established: Scavenger-Scrapper 3863 | -6/Factory | Fabricated E-15 Imp (x2) 4131 | -6/Factory | Cargo convoy interrupted 4616 | -6/Factory | Lost 3 parts (1p1n1w) 4883 | -6/Factory | Build established: Scavenger-Gunner 5097 | -6/Factory | Spotted B-75 Beast 5117 | -6/Factory | Core integrity fell below 50% 5142 | -6/Factory | Sucked down chute 5142 | -6/Factory | Entered Waste 5143 | -6/Waste | Met a frightened Derelict 5165 | -6/Waste | Spotted C-40 Crusher 5166 | -6/Waste | Lost 11 parts (3p3n1u4w) 5202 | -6/Waste | Spotted C-40 Crusher 5207 | -6/Waste | Spotted C-40 Crusher 5216 | -6/Waste | Warlord forces began an assault 5226 | -6/Waste | Allies destroyed C-40 Crusher 5230 | -6/Waste | Allies destroyed C-40 Crusher 5238 | -6/Waste | Allies destroyed C-40 Crusher 5310 | -6/Waste | Spotted C-40 Crusher 5316 | -6/Waste | Spotted C-40 Crusher 5319 | -6/Waste | Allies destroyed C-40 Crusher 5323 | -6/Waste | Allies destroyed C-40 Crusher 5350 | -6/Waste | Lost 4 allies 5356 | -6/Waste | Spotted C-40 Crusher 5361 | -6/Waste | Allies destroyed C-40 Crusher 5498 | -6/Waste | Discovered new exit (range 12) 5524 | -6/Waste | Build established: Scavenger-Mutant 5539 | -6/Waste | Entered Factory 5539 | -6/Factory | Accompanied by 15 allies 5877 | -6/Factory | Central database locked down 6182 | -6/Factory | Fabricated S-27 Virus (x3) 6767 | -6/Factory | Lost 4 allies 7214 | -6/Factory | Garrison activated, responded to threat 7267 | -6/Factory | Build established: Scavenger-Tank 7272 | -6/Factory | Lost 7 allies 7534 | -6/Factory | System corruption reached 10% 7551 | -6/Factory | Lost 3 allies 7563 | -6/Factory | Core integrity fell below 20% 7570 | -6/Factory | Destroyed by G-50 Soldier with Heavy Laser Last Messages --------------- Plasma Rifle destroyed. Hacking Suite destroyed. System corrupted by crushing effect (+5). Dropped Faulty Thermal Defense Suite. Companion Sword surprise attacks L-41 Fighter. Destroyed Carbon-fiber Leg. Backup Power III destroyed. Critical hit (Smash). L-41 Fighter destroyed. C-30 ARC bursts open, deploying its payload. G-67 Veteran unfolds itself. G-50 Soldier unfolds itself. Hvy. Treads destroyed. Critical hit (Burn: +37). Dropped Hvy. Treads. Dropped Broken Antimatter Reactor. Dropped IFF Parser. Dropped Hvy. Particle Cannon. Dropped Com. Ion Cannon. Dropped Hrd. Heavy Armor Plating. Map ----- +----------------------------------------------------+ | ???????????????????????????????????????? | | ???????????????????????????????????????? | | ???????????????????????????????????????? | | ???????????????????????????????????????? | | ???????????????????????????????????????? | | ???????????????????????????????????????? | | ???????????????????????????????????????? | | ???????????????????????????????????????? | | ???????????????????????????????????????? | | ???????????????????????????????????????? | | ???????????????????????????????????????? | | ???????????????????????????????????????? | | ???????????????????????????????????????? | | ???????????????????????????????????????? | | ???????????????????????????????????????? | | ???????????????????????????????????????? | | ???????????????????????????????????????? | | ???????????????????????????????????????? | | ???????????????????????????????????????? | | ???????????????????????????????????????? | | ???????????????????????????????????????? | | ???????????????????????????????????????? | | ???????????????????????????????????????? | | ????????????#?????##############???????? | | ????????????# ????# !!/b=* #???????? | | ??????????### ????# @l%!] ######### | | ??????????? ???# ! ]=%* ## # | | ????????????# ??# * ## " # | | ????????????# ??# ! ! %[[##!"G" # | | ?????????????# ?# ggg##! " # | | ?????????????# ##+#########/### # | | ?????????????# %= # """ # | | ?????????????# *%= + """ # | | ?????????????# % # """ # | | ?????????????# ###+###### # # | | ???????????### # = # # """ # | | ???????????+ "% !+ #= """ # | | ??############### #% %#= """ # | | ??# # ! # % # # | | ??#! """"" %# % + % ######## | | ?## !!!! """""" # ######%# # | | ?# [!!!*["""" " # # ## # "" # | | ??#[[!!=="""" " # # #### # "" # | | ??#!![%! % # = # #??# # T" # | | ??###%#+#####+################# # "" # | | ??+=%=%[%% % % + # | | ??######## #### % ######### # # | | ????????##%[ # ###???# # !# | | ???????## *==%# # ##?????# # # | | ???????# % # # # ##??????# # """ # | +----------------------------------------------------+ Best States ------------- Heat Dissipation 51 Energy Generation 45 Energy Capacity 575 Matter Stores 300 Matter Capacity 300 Sight Range 16 Robot Scan Range 16 Terrain Scan Density 10 Armor Coverage 600 Weapon Shielding 66 Evasion (%) 55 Melee Accuracy 5 Recoil Reduction 4 Offensive Hacking 10 Item Schematics ----------------- IFF Parser | -6/Factory | Scanalyzed Hrd. Heavy Armor Plating | -6/Factory | Scanalyzed Hvy. Particle Cannon | -6/Factory | Scanalyzed F-cell Engine | -6/Factory | Scanalyzed Robot Schematics ------------------ None Fabricated ------------ E-15 Imp | x2 | -6/Factory | Preloaded S-27 Virus | x3 | -6/Factory | Preloaded Repaired ---------- Nothing Alien Tech Used ----------------- None Achievements -------------- Ambidextrous My Command Is Your Wish We Are Legion Challenges ------------ None Game ------ Seed MassGrapheneFrame Manual? 0 Play Time 01:28:24 Cumulative 15.6 hours Start 2025.08.06 @ 21:24:45 End 2025.08.06 @ 23:21:51 Sessions 1 Manual Loads 0 Difficulty Rogue Special Mode None Game No. 19 Rogue 19 Adventurer 0 Explorer 0 Win Type - Total 0 Types 0/0/0/0/0/0/0/0/0/0 Lore% 19 Gallery% 19 Achievement% 21 Wizard Run 0 Options --------- Layout 1 ASCII 0 Keyboard 0 Movement Arrows Keybinds 0 Fullscreen 1 Font 16/SmallcapsGlow Map View 55x38 Zoom Use 0% Tactical HUD 0 Map Filters NONE Filters NONE Steam 1 RUN: 13c9dfa2-d688-4eac-83cb-0ff888f5c506